Workbook

Sheet Hoja1
A1: periodo | B1: ruc | C1: trib | D1: monto | E1: encuesta | K1: tributo | M1: periodo_proy
A2: 201202 | B2: 20100147514 | C2: Renta 3ra | D2: 56635721 | E2: Si | K2: Renta 3ra | M2: 201202
A3: 201202 | B3: 20100147514 | C3: IGV CP | D3: 20000000 | E3: Si | K3: IGV CP | M3: 201203
A4: 201202 | B4: 20100147514 | C4: Renta 3ra | D4: 56635721 | E4: Si | K4: Renta ND | M4: 201204
A5: 201202 | B5: 20100147514 | C5: IGV CP | D5: 20000000 | E5: Si | M5: 201205
A6: 201202 | B6: 20100147514 | C6: Renta ND | D6: 12000000 | E6: Si | M6: 201206
A7: 201202 | B7: 20330262428 | C7: Renta 3ra | D7: 135063522 | E7: No | M7: 201207
A8: 201202 | B8: 20466327612 | C8: IGV CP | D8: 2000000 | E8: Si | M8: 201208
A9: 201203 | B9: 20466327612 | C9: Renta 3ra | D9: 5158565 | E9: Si | M9: 201209
A10: 201203 | B10: 20209133394 | C10: Renta 3ra | D10: 50023527 | E10: No | M10: 201210
A11: 201202 | B11: 20100110513 | C11: IGV CP | D11: 34204425 | E11: No | M11: 201211
A12: 201203 | B12: 20100136741 | C12: IGV CP | D12: 4000000 | E12: Si | M12: 201212
A13: 201205 | B13: 20100056802 | C13: Renta ND | D13: 26690470 | E13: No

Sheet Hoja2
A1: ruc | B1: nombre
A2: 20100147514 | B2: SOUTHERN PERU COPPER CORPORATION SUCURSA L DEL PER
A3: 20330262428 | B3: COMPANIA MINERA ANTAMINA S.A
A4: 20170072465 | B4: SOCIEDAD MINERA CERRO VERDE S.A.A.
A5: 20209133394 | B5: MINERA BARRICK MISQUICHILCA SA
A6: 20100136741 | B6: MINSUR S. A.
A7: 20137291313 | B7: MINERA YANACOCHA S.R.L.
A8: 20114915026 | B8: XSTRATA TINTAYA S.A.
A9: 20383045267 | B9: VOLCAN COMPANIA MINERA S.A.A.
A10: 20100142989 | B10: SHOUGANG HIERRO PERU S.A.A.
A11: 20100110513 | B11: COMPAñIA MINERA MILPO S.A.A.
A12: 20507828915 | B12: GOLD FIELDS LA CIMA S.A.A.
A13: 20100079501 | B13: COMPAñIA DE MINAS BUENAVENTURA S.A.A.
A14: 20100025591 | B14: EMPRESA ADMINISTRADORA CHUNGAR S.A.C.
A15: 20100017572 | B15: SOCIEDAD MINERA EL BROCAL S.A.A.
A16: 20217427593 | B16: SOCIEDAD MINERA CORONA S A
A17: 20100108292 | B17: CIA MINERA CASAPALCA SA
A18: 20100056802 | B18: COMPAñIA MINERA CONDESTABLE S.A.
A19: 20136150473 | B19: CONSORCIO MINERO HORIZONTE S.A.
A20: 20466327612 | B20: ARUNTANI S.A.C.
A21: 20513798611 | B21: MINERA SUYAMARCA SOCIEDAD ANONIMA CERRADA

Sheet Hoja3
A1: ruc | B1: nombre | C1: 201001 | D1: 201002 | E1: 201003 | F1: 201004 | G1: 201005 | H1: 201006 | I1: 201007 | J1: 201008 | K1: 201009 | L1: 201010 | M1: 201011 | N1: 201012 | O1: 201101 | P1: 201102 | Q1: 201103 | R1: 201104 | S1: 201105 | T1: 201106 | U1: 201107 | V1: 201108 | W1: 201109 | X1: 201110 | Y1: 201111 | Z1: 201112 | AA1: 201201 | AC1: prom24mes | AD1: prom12mes | AE1: prom6mes | AF1: prom3mes
A2: 20100147514 | B2: SOUTHERN PERU COPPER CORPORATION SUCURSA L DEL PER | C2: 21000000 | D2: 22050000 | E2: 23152500 | F2: 24310125 | G2: 25525631.25 | H2: 26801912.81 | I2: 28142008.45 | J2: 29549108.88 | K2: 31026564.32 | L2: 32577892.54 | M2: 34206787.16 | N2: 35917126.52 | O2: 37712982.85 | P2: 39598631.99 | Q2: 41578563.59 | R2: 43657491.77 | S2: 45840366.36 | T2: 48132384.67 | U2: 50539003.91 | V2: 53065954.1 | W2: 55719251.81 | X2: 58505214.4 | Y2: 61430475.12 | Z2: 64501998.87 | AA2: 67727098.82 | AC2: =AVERAGE(D2:AA2) -> 40886211.47 | AD2: =AVERAGE(P2:AA2) -> 52524702.95 | AE2: =AVERAGE(V2:AA2) -> 60158332.19 | AF2: =AVERAGE(Y2:AA2) -> 64553190.94
A3: 20330262428 | B3: COMPANIA MINERA ANTAMINA S.A | C3: 54000000 | D3: 56700000 | E3: 59535000 | F3: 62511750 | G3: 65637337.5 | H3: 68919204.38 | I3: 72365164.59 | J3: 75983422.82 | K3: 79782593.96 | L3: 83771723.66 | M3: 87960309.85 | N3: 92358325.34 | O3: 96976241.61 | P3: 101825053.7 | Q3: 106916306.4 | R3: 112262121.7 | S3: 117875227.8 | T3: 123768989.2 | U3: 129957438.6 | V3: 136455310.6 | W3: 143278076.1 | X3: 150441979.9 | Y3: 157964078.9 | Z3: 165862282.8 | AA3: 174155397 | AC3: =AVERAGE(D3:AA3) -> 105135972.3 | AD3: =AVERAGE(P3:AA3) -> 135063521.9 | AE3: =AVERAGE(V3:AA3) -> 154692854.2 | AF3: =AVERAGE(Y3:AA3) -> 165993919.6
A4: 20170072465 | B4: SOCIEDAD MINERA CERRO VERDE S.A.A. | C4: 5000000 | D4: 5250000 | E4: 5512500 | F4: 5788125 | G4: 6077531.25 | H4: 6381407.812 | I4: 6700478.203 | J4: 7035502.113 | K4: 7387277.219 | L4: 7756641.08 | M4: 8144473.134 | N4: 8551696.791 | O4: 8979281.63 | P4: 9428245.712 | Q4: 9899657.997 | R4: 10394640.9 | S4: 10914372.94 | T4: 11460091.59 | U4: 12033096.17 | V4: 12634750.98 | W4: 13266488.53 | X4: 13929812.95 | Y4: 14626303.6 | Z4: 15357618.78 | AA4: 16125499.72 | AC4: 9734812.254 | AD4: 12505881.65 | AE4: 14323412.43 | AF4: 15369807.37
A5: 20209133394 | B5: MINERA BARRICK MISQUICHILCA SA | C5: 20000000 | D5: 21000000 | E5: 22050000 | F5: 23152500 | G5: 24310125 | H5: 25525631.25 | I5: 26801912.81 | J5: 28142008.45 | K5: 29549108.88 | L5: 31026564.32 | M5: 32577892.54 | N5: 34206787.16 | O5: 35917126.52 | P5: 37712982.85 | Q5: 39598631.99 | R5: 41578563.59 | S5: 43657491.77 | T5: 45840366.36 | U5: 48132384.67 | V5: 50539003.91 | W5: 53065954.1 | X5: 55719251.81 | Y5: 58505214.4 | Z5: 61430475.12 | AA5: 64501998.87 | AC5: 38939249.01 | AD5: 50023526.62 | AE5: 57293649.7 | AF5: 61479229.46
A6: 20100136741 | B6: MINSUR S. A. | C6: 15000000 | D6: 15750000 | E6: 16537500 | F6: 17364375 | G6: 18232593.75 | H6: 19144223.44 | I6: 20101434.61 | J6: 21106506.34 | K6: 22161831.66 | L6: 23269923.24 | M6: 24433419.4 | N6: 25655090.37 | O6: 26937844.89 | P6: 28284737.13 | Q6: 29698973.99 | R6: 31183922.69 | S6: 32743118.83 | T6: 34380274.77 | U6: 36099288.51 | V6: 37904252.93 | W6: 39799465.58 | X6: 41789438.86 | Y6: 43878910.8 | Z6: 46072856.34 | AA6: 48376499.16 | AC6: 29204436.76 | AD6: 37517644.96 | AE6: 42970237.28 | AF6: 46109422.1
A7: 20137291313 | B7: MINERA YANACOCHA S.R.L. | C7: 7000000 | D7: 7350000 | E7: 7717500 | F7: 8103375 | G7: 8508543.75 | H7: 8933970.938 | I7: 9380669.484 | J7: 9849702.959 | K7: 10342188.11 | L7: 10859297.51 | M7: 11402262.39 | N7: 11972375.51 | O7: 12570994.28 | P7: 13199544 | Q7: 13859521.2 | R7: 14552497.26 | S7: 15280122.12 | T7: 16044128.22 | U7: 16846334.64 | V7: 17688651.37 | W7: 18573083.94 | X7: 19501738.13 | Y7: 20476825.04 | Z7: 21500666.29 | AA7: 22575699.61 | AC7: 13628737.16 | AD7: 17508234.32 | AE7: 20052777.4 | AF7: 21517730.31
A8: 20114915026 | B8: XSTRATA TINTAYA S.A. | C8: 20000000 | D8: 21000000 | E8: 22050000 | F8: 23152500 | G8: 24310125 | H8: 25525631.25 | I8: 26801912.81 | J8: 28142008.45 | K8: 29549108.88 | L8: 31026564.32 | M8: 32577892.54 | N8: 34206787.16 | O8: 35917126.52 | P8: 37712982.85 | Q8: 39598631.99 | R8: 41578563.59 | S8: 43657491.77 | T8: 45840366.36 | U8: 48132384.67 | V8: 50539003.91 | W8: 53065954.1 | X8: 55719251.81 | Y8: 58505214.4 | Z8: 61430475.12 | AA8: 64501998.87 | AC8: 38939249.01 | AD8: 50023526.62 | AE8: 57293649.7 | AF8: 61479229.46
A9: 20383045267 | B9: VOLCAN COMPANIA MINERA S.A.A. | C9: 19000000 | D9: 19950000 | E9: 20947500 | F9: 21994875 | G9: 23094618.75 | H9: 24249349.69 | I9: 25461817.17 | J9: 26734908.03 | K9: 28071653.43 | L9: 29475236.1 | M9: 30948997.91 | N9: 32496447.8 | O9: 34121270.19 | P9: 35827333.7 | Q9: 37618700.39 | R9: 39499635.41 | S9: 41474617.18 | T9: 43548348.04 | U9: 45725765.44 | V9: 48012053.71 | W9: 50412656.4 | X9: 52933289.22 | Y9: 55579953.68 | Z9: 58358951.36 | AA9: 61276898.93 | AC9: 36992286.56 | AD9: 47522350.29 | AE9: 54428967.22 | AF9: 58405267.99
A10: 20100142989 | B10: SHOUGANG HIERRO PERU S.A.A. | C10: 18000000 | D10: 18900000 | E10: 19845000 | F10: 20837250 | G10: 21879112.5 | H10: 22973068.12 | I10: 24121721.53 | J10: 25327807.61 | K10: 26594197.99 | L10: 27923907.89 | M10: 29320103.28 | N10: 30786108.45 | O10: 32325413.87 | P10: 33941684.56 | Q10: 35638768.79 | R10: 37420707.23 | S10: 39291742.59 | T10: 41256329.72 | U10: 43319146.21 | V10: 45485103.52 | W10: 47759358.69 | X10: 50147326.63 | Y10: 52654692.96 | Z10: 55287427.61 | AA10: 58051798.99 | AC10: 35045324.11 | AD10: 45021173.96 | AE10: 51564284.73 | AF10: 55331306.52
A11: 20100110513 | B11: COMPAñIA MINERA MILPO S.A.A. | C11: 17000000 | D11: 17850000 | E11: 18742500 | F11: 19679625 | G11: 20663606.25 | H11: 21696786.56 | I11: 22781625.89 | J11: 23920707.19 | K11: 25116742.54 | L11: 26372579.67 | M11: 27691208.66 | N11: 29075769.09 | O11: 30529557.54 | P11: 32056035.42 | Q11: 33658837.19 | R11: 35341779.05 | S11: 37108868 | T11: 38964311.4 | U11: 40912526.97 | V11: 42958153.32 | W11: 45106060.99 | X11: 47361364.04 | Y11: 49729432.24 | Z11: 52215903.85 | AA11: 54826699.04 | AC11: 33098361.66 | AD11: 42519997.63 | AE11: 48699602.25 | AF11: 52257345.04
A12: 20507828915 | B12: GOLD FIELDS LA CIMA S.A.A. | C12: 16000000 | D12: 16800000 | E12: 17640000 | F12: 18522000 | G12: 19448100 | H12: 20420505 | I12: 21441530.25 | J12: 22513606.76 | K12: 23639287.1 | L12: 24821251.46 | M12: 26062314.03 | N12: 27365429.73 | O12: 28733701.22 | P12: 30170386.28 | Q12: 31678905.59 | R12: 33262850.87 | S12: 34925993.41 | T12: 36672293.08 | U12: 38505907.74 | V12: 40431203.13 | W12: 42452763.28 | X12: 44575401.45 | Y12: 46804171.52 | Z12: 49144380.09 | AA12: 51601599.1 | AC12: 31151399.21 | AD12: 40018821.3 | AE12: 45834919.76 | AF12: 49183383.57
A13: 20100079501 | B13: COMPAñIA DE MINAS BUENAVENTURA S.A.A. | C13: 15000000 | D13: 15750000 | E13: 16537500 | F13: 17364375 | G13: 18232593.75 | H13: 19144223.44 | I13: 20101434.61 | J13: 21106506.34 | K13: 22161831.66 | L13: 23269923.24 | M13: 24433419.4 | N13: 25655090.37 | O13: 26937844.89 | P13: 28284737.13 | Q13: 29698973.99 | R13: 31183922.69 | S13: 32743118.83 | T13: 34380274.77 | U13: 36099288.51 | V13: 37904252.93 | W13: 39799465.58 | X13: 41789438.86 | Y13: 43878910.8 | Z13: 46072856.34 | AA13: 48376499.16 | AC13: 29204436.76 | AD13: 37517644.96 | AE13: 42970237.28 | AF13: 46109422.1
A14: 20100025591 | B14: EMPRESA ADMINISTRADORA CHUNGAR S.A.C. | C14: 14000000 | D14: 14700000 | E14: 15435000 | F14: 16206750 | G14: 17017087.5 | H14: 17867941.88 | I14: 18761338.97 | J14: 19699405.92 | K14: 20684376.21 | L14: 21718595.02 | M14: 22804524.77 | N14: 23944751.01 | O14: 25141988.56 | P14: 26399087.99 | Q14: 27719042.39 | R14: 29104994.51 | S14: 30560244.24 | T14: 32088256.45 | U14: 33692669.27 | V14: 35377302.74 | W14: 37146167.87 | X14: 39003476.27 | Y14: 40953650.08 | Z14: 43001332.58 | AA14: 45151399.21 | AC14: 27257474.31 | AD14: 35016468.63 | AE14: 40105554.79 | AF14: 43035460.62
A15: 20100017572 | B15: SOCIEDAD MINERA EL BROCAL S.A.A. | C15: 13000000 | D15: 13650000 | E15: 14332500 | F15: 15049125 | G15: 15801581.25 | H15: 16591660.31 | I15: 17421243.33 | J15: 18292305.49 | K15: 19206920.77 | L15: 20167266.81 | M15: 21175630.15 | N15: 22234411.66 | O15: 23346132.24 | P15: 24513438.85 | Q15: 25739110.79 | R15: 27026066.33 | S15: 28377369.65 | T15: 29796238.13 | U15: 31286050.04 | V15: 32850352.54 | W15: 34492870.17 | X15: 36217513.68 | Y15: 38028389.36 | Z15: 39929808.83 | AA15: 41926299.27 | AC15: 25310511.86 | AD15: 32515292.3 | AE15: 37240872.31 | AF15: 39961499.15
A16: 20217427593 | B16: SOCIEDAD MINERA CORONA S A | C16: 12000000 | D16: 12600000 | E16: 13230000 | F16: 13891500 | G16: 14586075 | H16: 15315378.75 | I16: 16081147.69 | J16: 16885205.07 | K16: 17729465.33 | L16: 18615938.59 | M16: 19546735.52 | N16: 20524072.3 | O16: 21550275.91 | P16: 22627789.71 | Q16: 23759179.19 | R16: 24947138.15 | S16: 26194495.06 | T16: 27504219.81 | U16: 28879430.8 | V16: 30323402.34 | W16: 31839572.46 | X16: 33431551.08 | Y16: 35103128.64 | Z16: 36858285.07 | AA16: 38701199.32 | AC16: 23363549.41 | AD16: 30014115.97 | AE16: 34376189.82 | AF16: 36887537.68
A17: 20100108292 | B17: CIA MINERA CASAPALCA SA | C17: 11000000 | D17: 11550000 | E17: 12127500 | F17: 12733875 | G17: 13370568.75 | H17: 14039097.19 | I17: 14741052.05 | J17: 15478104.65 | K17: 16252009.88 | L17: 17064610.38 | M17: 17917840.89 | N17: 18813732.94 | O17: 19754419.59 | P17: 20742140.57 | Q17: 21779247.59 | R17: 22868209.97 | S17: 24011620.47 | T17: 25212201.5 | U17: 26472811.57 | V17: 27796452.15 | W17: 29186274.76 | X17: 30645588.49 | Y17: 32177867.92 | Z17: 33786761.32 | AA17: 35476099.38 | AC17: 21416586.96 | AD17: 27512939.64 | AE17: 31511507.34 | AF17: 33813576.21
A18: 20100056802 | B18: COMPAñIA MINERA CONDESTABLE S.A. | C18: 10000000 | D18: 10500000 | E18: 11025000 | F18: 11576250 | G18: 12155062.5 | H18: 12762815.62 | I18: 13400956.41 | J18: 14071004.23 | K18: 14774554.44 | L18: 15513282.16 | M18: 16288946.27 | N18: 17103393.58 | O18: 17958563.26 | P18: 18856491.42 | Q18: 19799315.99 | R18: 20789281.79 | S18: 21828745.88 | T18: 22920183.18 | U18: 24066192.34 | V18: 25269501.95 | W18: 26532977.05 | X18: 27859625.9 | Y18: 29252607.2 | Z18: 30715237.56 | AA18: 32250999.44 | AC18: 19469624.51 | AD18: 25011763.31 | AE18: 28646824.85 | AF18: 30739614.73
A19: 20136150473 | B19: CONSORCIO MINERO HORIZONTE S.A. | C19: 9000000 | D19: 9450000 | E19: 9922500 | F19: 10418625 | G19: 10939556.25 | H19: 11486534.06 | I19: 12060860.77 | J19: 12663903.8 | K19: 13297098.99 | L19: 13961953.94 | M19: 14660051.64 | N19: 15393054.22 | O19: 16162706.93 | P19: 16970842.28 | Q19: 17819384.39 | R19: 18710353.61 | S19: 19645871.3 | T19: 20628164.86 | U19: 21659573.1 | V19: 22742551.76 | W19: 23879679.35 | X19: 25073663.31 | Y19: 26327346.48 | Z19: 27643713.8 | AA19: 29025899.49 | AC19: 17522662.06 | AD19: 22510586.98 | AE19: 25782142.37 | AF19: 27665653.26
A20: 20466327612 | B20: ARUNTANI S.A.C. | C20: 8000000 | D20: 8400000 | E20: 8820000 | F20: 9261000 | G20: 9724050 | H20: 10210252.5 | I20: 10720765.12 | J20: 11256803.38 | K20: 11819643.55 | L20: 12410625.73 | M20: 13031157.01 | N20: 13682714.86 | O20: 14366850.61 | P20: 15085193.14 | Q20: 15839452.8 | R20: 16631425.44 | S20: 17462996.71 | T20: 18336146.54 | U20: 19252953.87 | V20: 20215601.56 | W20: 21226381.64 | X20: 22287700.72 | Y20: 23402085.76 | Z20: 24572190.05 | AA20: 25800799.55 | AC20: 15575699.61 | AD20: 20009410.65 | AE20: 22917459.88 | AF20: 24591691.79
A21: 20513798611 | B21: MINERA SUYAMARCA SOCIEDAD ANONIMA CERRADA | C21: 7000000 | D21: 7350000 | E21: 7717500 | F21: 8103375 | G21: 8508543.75 | H21: 8933970.938 | I21: 9380669.484 | J21: 9849702.959 | K21: 10342188.11 | L21: 10859297.51 | M21: 11402262.39 | N21: 11972375.51 | O21: 12570994.28 | P21: 13199544 | Q21: 13859521.2 | R21: 14552497.26 | S21: 15280122.12 | T21: 16044128.22 | U21: 16846334.64 | V21: 17688651.37 | W21: 18573083.94 | X21: 19501738.13 | Y21: 20476825.04 | Z21: 21500666.29 | AA21: 22575699.61 | AC21: 13628737.16 | AD21: 17508234.32 | AE21: 20052777.4 | AF21: 21517730.31

Sheet Hoja4
A1: ruc | B1: nombre | C1: 201001 | D1: 201002 | E1: 201003 | F1: 201004 | G1: 201005 | H1: 201006 | I1: 201007 | J1: 201008 | K1: 201009 | L1: 201010 | M1: 201011 | N1: 201012 | O1: 201101 | P1: 201102 | Q1: 201103 | R1: 201104 | S1: 201105 | T1: 201106 | U1: 201107 | V1: 201108 | W1: 201109 | X1: 201110 | Y1: 201111 | Z1: 201112 | AA1: 201201 | AC1: prom24mes | AD1: prom12mes | AE1: prom6mes | AF1: prom3mes
A2: 20100147514 | B2: SOUTHERN PERU COPPER CORPORATION SUCURSA L DEL PER | C2: 56635721 | D2: 59467507.05 | E2: 62440882.4 | F2: 65562926.52 | G2: 68841072.85 | H2: 72283126.49 | I2: 75897282.82 | J2: 79692146.96 | K2: 83676754.3 | L2: 87860592.02 | M2: 92253621.62 | N2: 96866302.7 | O2: 101709617.8 | P2: 106795098.7 | Q2: 112134853.7 | R2: 117741596.3 | S2: 123628676.2 | T2: 129810110 | U2: 136300615.5 | V2: 143115646.2 | W2: 150271428.6 | X2: 157785000 | Y2: 165674250 | Z2: 173957962.5 | AA2: 182655860.6 | AC2: =AVERAGE(D2:AA2) -> 110267622.2 | AD2: =AVERAGE(P2:AA2) -> 141655924.9 | AE2: =AVERAGE(V2:AA2) -> 162243358 | AF2: =AVERAGE(Y2:AA2) -> 174096024.4
A3: 20330262428 | B3: COMPANIA MINERA ANTAMINA S.A | C3: 178708158 | D3: 187643565.9 | E3: 197025744.2 | F3: 206877031.4 | G3: 217220883 | H3: 228081927.1 | I3: 239486023.5 | J3: 251460324.7 | K3: 264033340.9 | L3: 277235007.9 | M3: 291096758.3 | N3: 305651596.2 | O3: 320934176.1 | P3: 336980884.9 | Q3: 353829929.1 | R3: 371521425.6 | S3: 390097496.8 | T3: 409602371.7 | U3: 430082490.3 | V3: 451586614.8 | W3: 474165945.5 | X3: 497874242.8 | Y3: 522767954.9 | Z3: 548906352.7 | AA3: 576351670.3 | AC3: =AVERAGE(D3:AA3) -> 347938073.3 | AD3: =AVERAGE(P3:AA3) -> 446980614.9 | AE3: =AVERAGE(V3:AA3) -> 511942130.2 | AF3: =AVERAGE(Y3:AA3) -> 549341992.6
A4: 20170072465 | B4: SOCIEDAD MINERA CERRO VERDE S.A.A. | C4: 10879888 | D4: 11423882.4 | E4: 11995076.52 | F4: 12594830.35 | G4: 13224571.86 | H4: 13885800.46 | I4: 14580090.48 | J4: 15309095 | K4: 16074549.75 | L4: 16878277.24 | M4: 17722191.1 | N4: 18608300.66 | O4: 19538715.69 | P4: 20515651.48 | Q4: 21541434.05 | R4: 22618505.75 | S4: 23749431.04 | T4: 24936902.59 | U4: 26183747.72 | V4: 27492935.11 | W4: 28867581.86 | X4: 30310960.96 | Y4: 31826509 | Z4: 33417834.45 | AA4: 35088726.18 | AC4: 21182733.4 | AD4: 27212518.35 | AE4: 31167424.59 | AF4: 33444356.54
A5: 20209133394 | B5: MINERA BARRICK MISQUICHILCA SA | C5: 83947408 | D5: 88144778.4 | E5: 92552017.32 | F5: 97179618.19 | G5: 102038599.1 | H5: 107140529.1 | I5: 112497555.5 | J5: 118122433.3 | K5: 124028554.9 | L5: 130229982.7 | M5: 136741481.8 | N5: 143578555.9 | O5: 150757483.7 | P5: 158295357.9 | Q5: 166210125.8 | R5: 174520632.1 | S5: 183246663.7 | T5: 192408996.9 | U5: 202029446.7 | V5: 212130919 | W5: 222737465 | X5: 233874338.2 | Y5: 245568055.2 | Z5: 257846457.9 | AA5: 270738780.8 | AC5: 163442451.2 | AD5: 209967269.9 | AE5: 240482669.4 | AF5: 258051098
A6: 20100136741 | B6: MINSUR S. A. | C6: 42434557 | D6: 44556284.85 | E6: 46784099.09 | F6: 49123304.05 | G6: 51579469.25 | H6: 54158442.71 | I6: 56866364.85 | J6: 59709683.09 | K6: 62695167.24 | L6: 65829925.61 | M6: 69121421.89 | N6: 72577492.98 | O6: 76206367.63 | P6: 80016686.01 | Q6: 84017520.31 | R6: 88218396.33 | S6: 92629316.14 | T6: 97260781.95 | U6: 102123821 | V6: 107230012.1 | W6: 112591512.7 | X6: 118221088.3 | Y6: 124132142.8 | Z6: 130338749.9 | AA6: 136855687.4 | AC6: 82618489.09 | AD6: 106136309.6 | AE6: 121561532.2 | AF6: 130442193.3
A7: 20137291313 | B7: MINERA YANACOCHA S.R.L. | C7: 51066860 | D7: 53620203 | E7: 56301213.15 | F7: 59116273.81 | G7: 62072087.5 | H7: 65175691.87 | I7: 68434476.47 | J7: 71856200.29 | K7: 75449010.3 | L7: 79221460.82 | M7: 83182533.86 | N7: 87341660.55 | O7: 91708743.58 | P7: 96294180.76 | Q7: 101108889.8 | R7: 106164334.3 | S7: 111472551 | T7: 117046178.6 | U7: 122898487.5 | V7: 129043411.9 | W7: 135495582.4 | X7: 142270361.6 | Y7: 149383879.6 | Z7: 156853073.6 | AA7: 164695727.3 | AC7: 99425258.9 | AD7: 127727221.5 | AE7: 146290339.4 | AF7: 156977560.2
A8: 20114915026 | B8: XSTRATA TINTAYA S.A. | C8: 44996446 | D8: 47246268.3 | E8: 49608581.72 | F8: 52089010.8 | G8: 54693461.34 | H8: 57428134.41 | I8: 60299541.13 | J8: 63314518.18 | K8: 66480244.09 | L8: 69804256.3 | M8: 73294469.11 | N8: 76959192.57 | O8: 80807152.2 | P8: 84847509.81 | Q8: 89089885.3 | R8: 93544379.56 | S8: 98221598.54 | T8: 103132678.5 | U8: 108289312.4 | V8: 113703778 | W8: 119388966.9 | X8: 125358415.3 | Y8: 131626336 | Z8: 138207652.8 | AA8: 145118035.5 | AC8: 87606390.78 | AD8: 112544045.7 | AE8: 128900530.7 | AF8: 138317341.4
A9: 20383045267 | B9: VOLCAN COMPANIA MINERA S.A.A. | C9: 31694458 | D9: 33279180.9 | E9: 34943139.95 | F9: 36690296.94 | G9: 38524811.79 | H9: 40451052.38 | I9: 42473605 | J9: 44597285.25 | K9: 46827149.51 | L9: 49168506.99 | M9: 51626932.33 | N9: 54208278.95 | O9: 56918692.9 | P9: 59764627.54 | Q9: 62752858.92 | R9: 65890501.87 | S9: 69185026.96 | T9: 72644278.31 | U9: 76276492.22 | V9: 80090316.84 | W9: 84094832.68 | X9: 88299574.31 | Y9: 92714553.03 | Z9: 97350280.68 | AA9: 102217794.7 | AC9: 61707919.62 | AD9: 79273428.17 | AE9: 90794558.71 | AF9: 97427542.81
A10: 20100142989 | B10: SHOUGANG HIERRO PERU S.A.A. | C10: 3094951 | D10: 3249698.55 | E10: 3412183.478 | F10: 3582792.651 | G10: 3761932.284 | H10: 3950028.898 | I10: 4147530.343 | J10: 4354906.86 | K10: 4572652.203 | L10: 4801284.813 | M10: 5041349.054 | N10: 5293416.507 | O10: 5558087.332 | P10: 5835991.699 | Q10: 6127791.284 | R10: 6434180.848 | S10: 6755889.89 | T10: 7093684.385 | U10: 7448368.604 | V10: 7820787.034 | W10: 8211826.386 | X10: 8622417.705 | Y10: 9053538.59 | Z10: 9506215.52 | AA10: 9981526.296 | AC10: 6025753.384 | AD10: 7741018.187 | AE10: 8866051.922 | AF10: 9513760.135
A11: 20100110513 | B11: COMPAñIA MINERA MILPO S.A.A. | C11: 17568097 | D11: 18446501.85 | E11: 19368826.94 | F11: 20337268.29 | G11: 21354131.7 | H11: 22421838.29 | I11: 23542930.2 | J11: 24720076.71 | K11: 25956080.55 | L11: 27253884.58 | M11: 28616578.81 | N11: 30047407.75 | O11: 31549778.13 | P11: 33127267.04 | Q11: 34783630.39 | R11: 36522811.91 | S11: 38348952.51 | T11: 40266400.13 | U11: 42279720.14 | V11: 44393706.15 | W11: 46613391.45 | X11: 48944061.03 | Y11: 51391264.08 | Z11: 53960827.28 | AA11: 56658868.65 | AC11: 34204425.19 | AD11: 43940908.4 | AE11: 50327019.77 | AF11: 54003653.34
A12: 20507828915 | B12: GOLD FIELDS LA CIMA S.A.A. | C12: 7266575 | D12: 7629903.75 | E12: 8011398.938 | F12: 8411968.884 | G12: 8832567.329 | H12: 9274195.695 | I12: 9737905.48 | J12: 10224800.75 | K12: 10736040.79 | L12: 11272842.83 | M12: 11836484.97 | N12: 12428309.22 | O12: 13049724.68 | P12: 13702210.92 | Q12: 14387321.46 | R12: 15106687.54 | S12: 15862021.91 | T12: 16655123.01 | U12: 17487879.16 | V12: 18362273.12 | W12: 19280386.77 | X12: 20244406.11 | Y12: 21256626.42 | Z12: 22319457.74 | AA12: 23435430.62 | AC12: 14147748.67 | AD12: 18174985.4 | AE12: 20816430.13 | AF12: 22337171.59
A13: 20100079501 | B13: COMPAñIA DE MINAS BUENAVENTURA S.A.A. | C13: 14072111 | D13: 14775716.55 | E13: 15514502.38 | F13: 16290227.5 | G13: 17104738.87 | H13: 17959975.81 | I13: 18857974.61 | J13: 19800873.34 | K13: 20790917 | L13: 21830462.85 | M13: 22921986 | N13: 24068085.3 | O13: 25271489.56 | P13: 26535064.04 | Q13: 27861817.24 | R13: 29254908.1 | S13: 30717653.51 | T13: 32253536.18 | U13: 33866212.99 | V13: 35559523.64 | W13: 37337499.82 | X13: 39204374.81 | Y13: 41164593.55 | Z13: 43222823.23 | AA13: 45383964.39 | AC13: 27397871.72 | AD13: 35196830.96 | AE13: 40312129.91 | AF13: 43257127.06
A14: 20100025591 | B14: EMPRESA ADMINISTRADORA CHUNGAR S.A.C. | C14: 13559602 | D14: 14237582.1 | E14: 14949461.21 | F14: 15696934.27 | G14: 16481780.98 | H14: 17305870.03 | I14: 18171163.53 | J14: 19079721.71 | K14: 20033707.79 | L14: 21035393.18 | M14: 22087162.84 | N14: 23191520.98 | O14: 24351097.03 | P14: 25568651.88 | Q14: 26847084.48 | R14: 28189438.7 | S14: 29598910.63 | T14: 31078856.17 | U14: 32632798.97 | V14: 34264438.92 | W14: 35977660.87 | X14: 37776543.91 | Y14: 39665371.11 | Z14: 41648639.66 | AA14: 43731071.65 | AC14: 26400035.94 | AD14: 33914955.58 | AE14: 38843954.35 | AF14: 41681694.14
A15: 20100017572 | B15: SOCIEDAD MINERA EL BROCAL S.A.A. | C15: 16586396 | D15: 17415715.8 | E15: 18286501.59 | F15: 19200826.67 | G15: 20160868 | H15: 21168911.4 | I15: 22227356.97 | J15: 23338724.82 | K15: 24505661.06 | L15: 25730944.12 | M15: 27017491.32 | N15: 28368365.89 | O15: 29786784.18 | P15: 31276123.39 | Q15: 32839929.56 | R15: 34481926.04 | S15: 36206022.34 | T15: 38016323.46 | U15: 39917139.63 | V15: 41912996.61 | W15: 44008646.44 | X15: 46209078.77 | Y15: 48519532.7 | Z15: 50945509.34 | AA15: 53492784.81 | AC15: 32293090.21 | AD15: 41485501.09 | AE15: 47514758.11 | AF15: 50985942.28
A16: 20217427593 | B16: SOCIEDAD MINERA CORONA S A | C16: 5774880 | D16: 6063624 | E16: 6366805.2 | F16: 6685145.46 | G16: 7019402.733 | H16: 7370372.87 | I16: 7738891.513 | J16: 8125836.089 | K16: 8532127.893 | L16: 8958734.288 | M16: 9406671.002 | N16: 9877004.552 | O16: 10370854.78 | P16: 10889397.52 | Q16: 11433867.39 | R16: 12005560.76 | S16: 12605838.8 | T16: 13236130.74 | U16: 13897937.28 | V16: 14592834.14 | W16: 15322475.85 | X16: 16088599.64 | Y16: 16893029.63 | Z16: 17737681.11 | AA16: 18624565.16 | AC16: 11243474.52 | AD16: 14443993.17 | AE16: 16543197.59 | AF16: 17751758.63
A17: 20100108292 | B17: CIA MINERA CASAPALCA SA | C17: 7722439 | D17: 8108560.95 | E17: 8513988.998 | F17: 8939688.447 | G17: 9386672.87 | H17: 9856006.513 | I17: 10348806.84 | J17: 10866247.18 | K17: 11409559.54 | L17: 11980037.52 | M17: 12579039.39 | N17: 13207991.36 | O17: 13868390.93 | P17: 14561810.48 | Q17: 15289901 | R17: 16054396.05 | S17: 16857115.85 | T17: 17699971.65 | U17: 18584970.23 | V17: 19514218.74 | W17: 20489929.68 | X17: 21514426.16 | Y17: 22590147.47 | Z17: 23719654.84 | AA17: 24905637.58 | AC17: 15035298.76 | AD17: 19315181.64 | AE17: 22122335.75 | AF17: 23738479.97
A18: 20100056802 | B18: COMPAñIA MINERA CONDESTABLE S.A. | C18: 9317078 | D18: 9782931.9 | E18: 10272078.5 | F18: 10785682.42 | G18: 11324966.54 | H18: 11891214.87 | I18: 12485775.61 | J18: 13110064.39 | K18: 13765567.61 | L18: 14453845.99 | M18: 15176538.29 | N18: 15935365.21 | O18: 16732133.47 | P18: 17568740.14 | Q18: 18447177.15 | R18: 19369536 | S18: 20338012.8 | T18: 21354913.44 | U18: 22422659.12 | V18: 23543792.07 | W18: 24720981.68 | X18: 25957030.76 | Y18: 27254882.3 | Z18: 28617626.41 | AA18: 30048507.73 | AC18: 18140001.02 | AD18: 23303654.97 | AE18: 26690470.16 | AF18: 28640338.81
A19: 20136150473 | B19: CONSORCIO MINERO HORIZONTE S.A. | C19: 6993738 | D19: 7343424.9 | E19: 7710596.145 | F19: 8096125.952 | G19: 8500932.25 | H19: 8925978.862 | I19: 9372277.805 | J19: 9840891.696 | K19: 10332936.28 | L19: 10849583.09 | M19: 11392062.25 | N19: 11961665.36 | O19: 12559748.63 | P19: 13187736.06 | Q19: 13847122.86 | R19: 14539479.01 | S19: 15266452.96 | T19: 16029775.61 | U19: 16831264.39 | V19: 17672827.61 | W19: 18556468.99 | X19: 19484292.44 | Y19: 20458507.06 | Z19: 21481432.41 | AA19: 22555504.03 | AC19: 13616545.28 | AD19: 17492571.95 | AE19: 20034838.75 | AF19: 21498481.17
A20: 20466327612 | B20: ARUNTANI S.A.C. | C20: 5158565 | D20: 5416493.25 | E20: 5687317.913 | F20: 5971683.808 | G20: 6270267.999 | H20: 6583781.398 | I20: 6912970.468 | J20: 7258618.992 | K20: 7621549.941 | L20: 8002627.438 | M20: 8402758.81 | N20: 8822896.751 | O20: 9264041.588 | P20: 9727243.668 | Q20: 10213605.85 | R20: 10724286.14 | S20: 11260500.45 | T20: 11823525.47 | U20: 12414701.75 | V20: 13035436.83 | W20: 13687208.68 | X20: 14371569.11 | Y20: 15090147.57 | Z20: 15844654.94 | AA20: 16636887.69 | AC20: 10043532.35 | AD20: 12902480.68 | AE20: 14777650.8 | AF20: 15857230.07
A21: 20513798611 | B21: MINERA SUYAMARCA SOCIEDAD ANONIMA CERRADA | C21: 3310709 | D21: 3476244.45 | E21: 3650056.673 | F21: 3832559.506 | G21: 4024187.481 | H21: 4225396.856 | I21: 4436666.698 | J21: 4658500.033 | K21: 4891425.035 | L21: 5135996.287 | M21: 5392796.101 | N21: 5662435.906 | O21: 5945557.701 | P21: 6242835.586 | Q21: 6554977.366 | R21: 6882726.234 | S21: 7226862.546 | T21: 7588205.673 | U21: 7967615.957 | V21: 8365996.754 | W21: 8784296.592 | X21: 9223511.422 | Y21: 9684686.993 | Z21: 10168921.34 | AA21: 10677367.41 | AC21: 6445826.108 | AD21: 8280666.989 | AE21: 9484130.085 | AF21: 10176991.91

Sheet Hoja5
A1: ruc | B1: nombre | C1: 201001 | D1: 201002 | E1: 201003 | F1: 201004 | G1: 201005 | H1: 201006 | I1: 201007 | J1: 201008 | K1: 201009 | L1: 201010 | M1: 201011 | N1: 201012 | O1: 201101 | P1: 201102 | Q1: 201103 | R1: 201104 | S1: 201105 | T1: 201106 | U1: 201107 | V1: 201108 | W1: 201109 | X1: 201110 | Y1: 201111 | Z1: 201112 | AA1: 201201 | AC1: prom24mes | AD1: prom12mes | AE1: prom6mes | AF1: prom3mes
A2: 20100147514 | B2: SOUTHERN PERU COPPER CORPORATION SUCURSA L DEL PER | C2: 56635721 | D2: 59467507.05 | E2: 62440882.4 | F2: 65562926.52 | G2: 68841072.85 | H2: 72283126.49 | I2: 75897282.82 | J2: 79692146.96 | K2: 83676754.3 | L2: 87860592.02 | M2: 92253621.62 | N2: 96866302.7 | O2: 101709617.8 | P2: 106795098.7 | Q2: 112134853.7 | R2: 117741596.3 | S2: 123628676.2 | T2: 129810110 | U2: 136300615.5 | V2: 143115646.2 | W2: 150271428.6 | X2: 157785000 | Y2: 165674250 | Z2: 173957962.5 | AA2: 182655860.6 | AC2: =AVERAGE(D2:AA2) -> 110267622.2 | AD2: =AVERAGE(P2:AA2) -> 141655924.9 | AE2: =AVERAGE(V2:AA2) -> 162243358 | AF2: =AVERAGE(Y2:AA2) -> 174096024.4
A3: 20330262428 | B3: COMPANIA MINERA ANTAMINA S.A | C3: 178708158 | D3: 187643565.9 | E3: 197025744.2 | F3: 206877031.4 | G3: 217220883 | H3: 228081927.1 | I3: 239486023.5 | J3: 251460324.7 | K3: 264033340.9 | L3: 277235007.9 | M3: 291096758.3 | N3: 305651596.2 | O3: 320934176.1 | P3: 336980884.9 | Q3: 353829929.1 | R3: 371521425.6 | S3: 390097496.8 | T3: 409602371.7 | U3: 430082490.3 | V3: 451586614.8 | W3: 474165945.5 | X3: 497874242.8 | Y3: 522767954.9 | Z3: 548906352.7 | AA3: 576351670.3 | AC3: =AVERAGE(D3:AA3) -> 347938073.3 | AD3: =AVERAGE(P3:AA3) -> 446980614.9 | AE3: =AVERAGE(V3:AA3) -> 511942130.2 | AF3: =AVERAGE(Y3:AA3) -> 549341992.6
A4: 20170072465 | B4: SOCIEDAD MINERA CERRO VERDE S.A.A. | C4: 10879888 | D4: 11423882.4 | E4: 11995076.52 | F4: 12594830.35 | G4: 13224571.86 | H4: 13885800.46 | I4: 14580090.48 | J4: 15309095 | K4: 16074549.75 | L4: 16878277.24 | M4: 17722191.1 | N4: 18608300.66 | O4: 19538715.69 | P4: 20515651.48 | Q4: 21541434.05 | R4: 22618505.75 | S4: 23749431.04 | T4: 24936902.59 | U4: 26183747.72 | V4: 27492935.11 | W4: 28867581.86 | X4: 30310960.96 | Y4: 31826509 | Z4: 33417834.45 | AA4: 35088726.18 | AC4: 21182733.4 | AD4: 27212518.35 | AE4: 31167424.59 | AF4: 33444356.54
A5: 20209133394 | B5: MINERA BARRICK MISQUICHILCA SA | C5: 83947408 | D5: 88144778.4 | E5: 92552017.32 | F5: 97179618.19 | G5: 102038599.1 | H5: 107140529.1 | I5: 112497555.5 | J5: 118122433.3 | K5: 124028554.9 | L5: 130229982.7 | M5: 136741481.8 | N5: 143578555.9 | O5: 150757483.7 | P5: 158295357.9 | Q5: 166210125.8 | R5: 174520632.1 | S5: 183246663.7 | T5: 192408996.9 | U5: 202029446.7 | V5: 212130919 | W5: 222737465 | X5: 233874338.2 | Y5: 245568055.2 | Z5: 257846457.9 | AA5: 270738780.8 | AC5: 163442451.2 | AD5: 209967269.9 | AE5: 240482669.4 | AF5: 258051098
A6: 20100136741 | B6: MINSUR S. A. | C6: 42434557 | D6: 44556284.85 | E6: 46784099.09 | F6: 49123304.05 | G6: 51579469.25 | H6: 54158442.71 | I6: 56866364.85 | J6: 59709683.09 | K6: 62695167.24 | L6: 65829925.61 | M6: 69121421.89 | N6: 72577492.98 | O6: 76206367.63 | P6: 80016686.01 | Q6: 84017520.31 | R6: 88218396.33 | S6: 92629316.14 | T6: 97260781.95 | U6: 102123821 | V6: 107230012.1 | W6: 112591512.7 | X6: 118221088.3 | Y6: 124132142.8 | Z6: 130338749.9 | AA6: 136855687.4 | AC6: 82618489.09 | AD6: 106136309.6 | AE6: 121561532.2 | AF6: 130442193.3
A7: 20137291313 | B7: MINERA YANACOCHA S.R.L. | C7: 51066860 | D7: 53620203 | E7: 56301213.15 | F7: 59116273.81 | G7: 62072087.5 | H7: 65175691.87 | I7: 68434476.47 | J7: 71856200.29 | K7: 75449010.3 | L7: 79221460.82 | M7: 83182533.86 | N7: 87341660.55 | O7: 91708743.58 | P7: 96294180.76 | Q7: 101108889.8 | R7: 106164334.3 | S7: 111472551 | T7: 117046178.6 | U7: 122898487.5 | V7: 129043411.9 | W7: 135495582.4 | X7: 142270361.6 | Y7: 149383879.6 | Z7: 156853073.6 | AA7: 164695727.3 | AC7: 99425258.9 | AD7: 127727221.5 | AE7: 146290339.4 | AF7: 156977560.2
A8: 20114915026 | B8: XSTRATA TINTAYA S.A. | C8: 44996446 | D8: 47246268.3 | E8: 49608581.72 | F8: 52089010.8 | G8: 54693461.34 | H8: 57428134.41 | I8: 60299541.13 | J8: 63314518.18 | K8: 66480244.09 | L8: 69804256.3 | M8: 73294469.11 | N8: 76959192.57 | O8: 80807152.2 | P8: 84847509.81 | Q8: 89089885.3 | R8: 93544379.56 | S8: 98221598.54 | T8: 103132678.5 | U8: 108289312.4 | V8: 113703778 | W8: 119388966.9 | X8: 125358415.3 | Y8: 131626336 | Z8: 138207652.8 | AA8: 145118035.5 | AC8: 87606390.78 | AD8: 112544045.7 | AE8: 128900530.7 | AF8: 138317341.4
A9: 20383045267 | B9: VOLCAN COMPANIA MINERA S.A.A. | C9: 31694458 | D9: 33279180.9 | E9: 34943139.95 | F9: 36690296.94 | G9: 38524811.79 | H9: 40451052.38 | I9: 42473605 | J9: 44597285.25 | K9: 46827149.51 | L9: 49168506.99 | M9: 51626932.33 | N9: 54208278.95 | O9: 56918692.9 | P9: 59764627.54 | Q9: 62752858.92 | R9: 65890501.87 | S9: 69185026.96 | T9: 72644278.31 | U9: 76276492.22 | V9: 80090316.84 | W9: 84094832.68 | X9: 88299574.31 | Y9: 92714553.03 | Z9: 97350280.68 | AA9: 102217794.7 | AC9: 61707919.62 | AD9: 79273428.17 | AE9: 90794558.71 | AF9: 97427542.81
A10: 20100142989 | B10: SHOUGANG HIERRO PERU S.A.A. | C10: 3094951 | D10: 3249698.55 | E10: 3412183.478 | F10: 3582792.651 | G10: 3761932.284 | H10: 3950028.898 | I10: 4147530.343 | J10: 4354906.86 | K10: 4572652.203 | L10: 4801284.813 | M10: 5041349.054 | N10: 5293416.507 | O10: 5558087.332 | P10: 5835991.699 | Q10: 6127791.284 | R10: 6434180.848 | S10: 6755889.89 | T10: 7093684.385 | U10: 7448368.604 | V10: 7820787.034 | W10: 8211826.386 | X10: 8622417.705 | Y10: 9053538.59 | Z10: 9506215.52 | AA10: 9981526.296 | AC10: 6025753.384 | AD10: 7741018.187 | AE10: 8866051.922 | AF10: 9513760.135
A11: 20100110513 | B11: COMPAñIA MINERA MILPO S.A.A. | C11: 17568097 | D11: 18446501.85 | E11: 19368826.94 | F11: 20337268.29 | G11: 21354131.7 | H11: 22421838.29 | I11: 23542930.2 | J11: 24720076.71 | K11: 25956080.55 | L11: 27253884.58 | M11: 28616578.81 | N11: 30047407.75 | O11: 31549778.13 | P11: 33127267.04 | Q11: 34783630.39 | R11: 36522811.91 | S11: 38348952.51 | T11: 40266400.13 | U11: 42279720.14 | V11: 44393706.15 | W11: 46613391.45 | X11: 48944061.03 | Y11: 51391264.08 | Z11: 53960827.28 | AA11: 56658868.65 | AC11: 34204425.19 | AD11: 43940908.4 | AE11: 50327019.77 | AF11: 54003653.34
A12: 20507828915 | B12: GOLD FIELDS LA CIMA S.A.A. | C12: 7266575 | D12: 7629903.75 | E12: 8011398.938 | F12: 8411968.884 | G12: 8832567.329 | H12: 9274195.695 | I12: 9737905.48 | J12: 10224800.75 | K12: 10736040.79 | L12: 11272842.83 | M12: 11836484.97 | N12: 12428309.22 | O12: 13049724.68 | P12: 13702210.92 | Q12: 14387321.46 | R12: 15106687.54 | S12: 15862021.91 | T12: 16655123.01 | U12: 17487879.16 | V12: 18362273.12 | W12: 19280386.77 | X12: 20244406.11 | Y12: 21256626.42 | Z12: 22319457.74 | AA12: 23435430.62 | AC12: 14147748.67 | AD12: 18174985.4 | AE12: 20816430.13 | AF12: 22337171.59
A13: 20100079501 | B13: COMPAñIA DE MINAS BUENAVENTURA S.A.A. | C13: 14072111 | D13: 14775716.55 | E13: 15514502.38 | F13: 16290227.5 | G13: 17104738.87 | H13: 17959975.81 | I13: 18857974.61 | J13: 19800873.34 | K13: 20790917 | L13: 21830462.85 | M13: 22921986 | N13: 24068085.3 | O13: 25271489.56 | P13: 26535064.04 | Q13: 27861817.24 | R13: 29254908.1 | S13: 30717653.51 | T13: 32253536.18 | U13: 33866212.99 | V13: 35559523.64 | W13: 37337499.82 | X13: 39204374.81 | Y13: 41164593.55 | Z13: 43222823.23 | AA13: 45383964.39 | AC13: 27397871.72 | AD13: 35196830.96 | AE13: 40312129.91 | AF13: 43257127.06
A14: 20100025591 | B14: EMPRESA ADMINISTRADORA CHUNGAR S.A.C. | C14: 13559602 | D14: 14237582.1 | E14: 14949461.21 | F14: 15696934.27 | G14: 16481780.98 | H14: 17305870.03 | I14: 18171163.53 | J14: 19079721.71 | K14: 20033707.79 | L14: 21035393.18 | M14: 22087162.84 | N14: 23191520.98 | O14: 24351097.03 | P14: 25568651.88 | Q14: 26847084.48 | R14: 28189438.7 | S14: 29598910.63 | T14: 31078856.17 | U14: 32632798.97 | V14: 34264438.92 | W14: 35977660.87 | X14: 37776543.91 | Y14: 39665371.11 | Z14: 41648639.66 | AA14: 43731071.65 | AC14: 26400035.94 | AD14: 33914955.58 | AE14: 38843954.35 | AF14: 41681694.14
A15: 20100017572 | B15: SOCIEDAD MINERA EL BROCAL S.A.A. | C15: 16586396 | D15: 17415715.8 | E15: 18286501.59 | F15: 19200826.67 | G15: 20160868 | H15: 21168911.4 | I15: 22227356.97 | J15: 23338724.82 | K15: 24505661.06 | L15: 25730944.12 | M15: 27017491.32 | N15: 28368365.89 | O15: 29786784.18 | P15: 31276123.39 | Q15: 32839929.56 | R15: 34481926.04 | S15: 36206022.34 | T15: 38016323.46 | U15: 39917139.63 | V15: 41912996.61 | W15: 44008646.44 | X15: 46209078.77 | Y15: 48519532.7 | Z15: 50945509.34 | AA15: 53492784.81 | AC15: 32293090.21 | AD15: 41485501.09 | AE15: 47514758.11 | AF15: 50985942.28
A16: 20217427593 | B16: SOCIEDAD MINERA CORONA S A | C16: 5774880 | D16: 6063624 | E16: 6366805.2 | F16: 6685145.46 | G16: 7019402.733 | H16: 7370372.87 | I16: 7738891.513 | J16: 8125836.089 | K16: 8532127.893 | L16: 8958734.288 | M16: 9406671.002 | N16: 9877004.552 | O16: 10370854.78 | P16: 10889397.52 | Q16: 11433867.39 | R16: 12005560.76 | S16: 12605838.8 | T16: 13236130.74 | U16: 13897937.28 | V16: 14592834.14 | W16: 15322475.85 | X16: 16088599.64 | Y16: 16893029.63 | Z16: 17737681.11 | AA16: 18624565.16 | AC16: 11243474.52 | AD16: 14443993.17 | AE16: 16543197.59 | AF16: 17751758.63
A17: 20100108292 | B17: CIA MINERA CASAPALCA SA | C17: 7722439 | D17: 8108560.95 | E17: 8513988.998 | F17: 8939688.447 | G17: 9386672.87 | H17: 9856006.513 | I17: 10348806.84 | J17: 10866247.18 | K17: 11409559.54 | L17: 11980037.52 | M17: 12579039.39 | N17: 13207991.36 | O17: 13868390.93 | P17: 14561810.48 | Q17: 15289901 | R17: 16054396.05 | S17: 16857115.85 | T17: 17699971.65 | U17: 18584970.23 | V17: 19514218.74 | W17: 20489929.68 | X17: 21514426.16 | Y17: 22590147.47 | Z17: 23719654.84 | AA17: 24905637.58 | AC17: 15035298.76 | AD17: 19315181.64 | AE17: 22122335.75 | AF17: 23738479.97
A18: 20100056802 | B18: COMPAñIA MINERA CONDESTABLE S.A. | C18: 9317078 | D18: 9782931.9 | E18: 10272078.5 | F18: 10785682.42 | G18: 11324966.54 | H18: 11891214.87 | I18: 12485775.61 | J18: 13110064.39 | K18: 13765567.61 | L18: 14453845.99 | M18: 15176538.29 | N18: 15935365.21 | O18: 16732133.47 | P18: 17568740.14 | Q18: 18447177.15 | R18: 19369536 | S18: 20338012.8 | T18: 21354913.44 | U18: 22422659.12 | V18: 23543792.07 | W18: 24720981.68 | X18: 25957030.76 | Y18: 27254882.3 | Z18: 28617626.41 | AA18: 30048507.73 | AC18: 18140001.02 | AD18: 23303654.97 | AE18: 26690470.16 | AF18: 28640338.81
A19: 20136150473 | B19: CONSORCIO MINERO HORIZONTE S.A. | C19: 6993738 | D19: 7343424.9 | E19: 7710596.145 | F19: 8096125.952 | G19: 8500932.25 | H19: 8925978.862 | I19: 9372277.805 | J19: 9840891.696 | K19: 10332936.28 | L19: 10849583.09 | M19: 11392062.25 | N19: 11961665.36 | O19: 12559748.63 | P19: 13187736.06 | Q19: 13847122.86 | R19: 14539479.01 | S19: 15266452.96 | T19: 16029775.61 | U19: 16831264.39 | V19: 17672827.61 | W19: 18556468.99 | X19: 19484292.44 | Y19: 20458507.06 | Z19: 21481432.41 | AA19: 22555504.03 | AC19: 13616545.28 | AD19: 17492571.95 | AE19: 20034838.75 | AF19: 21498481.17
A20: 20466327612 | B20: ARUNTANI S.A.C. | C20: 5158565 | D20: 5416493.25 | E20: 5687317.913 | F20: 5971683.808 | G20: 6270267.999 | H20: 6583781.398 | I20: 6912970.468 | J20: 7258618.992 | K20: 7621549.941 | L20: 8002627.438 | M20: 8402758.81 | N20: 8822896.751 | O20: 9264041.588 | P20: 9727243.668 | Q20: 10213605.85 | R20: 10724286.14 | S20: 11260500.45 | T20: 11823525.47 | U20: 12414701.75 | V20: 13035436.83 | W20: 13687208.68 | X20: 14371569.11 | Y20: 15090147.57 | Z20: 15844654.94 | AA20: 16636887.69 | AC20: 10043532.35 | AD20: 12902480.68 | AE20: 14777650.8 | AF20: 15857230.07
A21: 20513798611 | B21: MINERA SUYAMARCA SOCIEDAD ANONIMA CERRADA | C21: 3310709 | D21: 3476244.45 | E21: 3650056.673 | F21: 3832559.506 | G21: 4024187.481 | H21: 4225396.856 | I21: 4436666.698 | J21: 4658500.033 | K21: 4891425.035 | L21: 5135996.287 | M21: 5392796.101 | N21: 5662435.906 | O21: 5945557.701 | P21: 6242835.586 | Q21: 6554977.366 | R21: 6882726.234 | S21: 7226862.546 | T21: 7588205.673 | U21: 7967615.957 | V21: 8365996.754 | W21: 8784296.592 | X21: 9223511.422 | Y21: 9684686.993 | Z21: 10168921.34 | AA21: 10677367.41 | AC21: 6445826.108 | AD21: 8280666.989 | AE21: 9484130.085 | AF21: 10176991.91

Sheet Hoja6
A1: ruc | B1: nombre | C1: 201202
A2: 20100147514 | B2: SOUTHERN PERU COPPER CORPORATION SUCURSA L DEL PER | C2: 56635721
A3: 20330262428 | B3: COMPANIA MINERA ANTAMINA S.A
A4: 20170072465 | B4: SOCIEDAD MINERA CERRO VERDE S.A.A. | C4: 10879888
A5: 20209133394 | B5: MINERA BARRICK MISQUICHILCA SA
A6: 20100136741 | B6: MINSUR S. A. | C6: 0
A7: 20137291313 | B7: MINERA YANACOCHA S.R.L.
A8: 20114915026 | B8: XSTRATA TINTAYA S.A. | C8: 44996446
A9: 20383045267 | B9: VOLCAN COMPANIA MINERA S.A.A.
A10: 20100142989 | B10: SHOUGANG HIERRO PERU S.A.A. | C10: 3094951
A11: 20100110513 | B11: COMPAñIA MINERA MILPO S.A.A.
A12: 20507828915 | B12: GOLD FIELDS LA CIMA S.A.A. | C12: 7266575
A13: 20100079501 | B13: COMPAñIA DE MINAS BUENAVENTURA S.A.A.
A14: 20100025591 | B14: EMPRESA ADMINISTRADORA CHUNGAR S.A.C. | C14: 13559602
A15: 20100017572 | B15: SOCIEDAD MINERA EL BROCAL S.A.A.
A16: 20217427593 | B16: SOCIEDAD MINERA CORONA S A | C16: 5774880
A17: 20100108292 | B17: CIA MINERA CASAPALCA SA | C17: 7722439
A18: 20100056802 | B18: COMPAñIA MINERA CONDESTABLE S.A.
A19: 20136150473 | B19: CONSORCIO MINERO HORIZONTE S.A. | C19: 6993738
A20: 20466327612 | B20: ARUNTANI S.A.C. | C20: 5158565
A21: 20513798611 | B21: MINERA SUYAMARCA SOCIEDAD ANONIMA CERRADA | C21: 3310709

Sheet Hoja7
A1: ruc | B1: nombre | C1: 201202
A2: 20100147514 | B2: SOUTHERN PERU COPPER CORPORATION SUCURSA L DEL PER | C2: 20000000
A3: 20330262428 | B3: COMPANIA MINERA ANTAMINA S.A
A4: 20170072465 | B4: SOCIEDAD MINERA CERRO VERDE S.A.A. | C4: 10000000
A5: 20209133394 | B5: MINERA BARRICK MISQUICHILCA SA
A6: 20100136741 | B6: MINSUR S. A. | C6: 4000000
A7: 20137291313 | B7: MINERA YANACOCHA S.R.L.
A8: 20114915026 | B8: XSTRATA TINTAYA S.A. | C8: 14000000
A9: 20383045267 | B9: VOLCAN COMPANIA MINERA S.A.A.
A10: 20100142989 | B10: SHOUGANG HIERRO PERU S.A.A. | C10: 13000000
A11: 20100110513 | B11: COMPAñIA MINERA MILPO S.A.A.
A12: 20507828915 | B12: GOLD FIELDS LA CIMA S.A.A. | C12: 4000000
A13: 20100079501 | B13: COMPAñIA DE MINAS BUENAVENTURA S.A.A.
A14: 20100025591 | B14: EMPRESA ADMINISTRADORA CHUNGAR S.A.C. | C14: 5000000
A15: 20100017572 | B15: SOCIEDAD MINERA EL BROCAL S.A.A.
A16: 20217427593 | B16: SOCIEDAD MINERA CORONA S A | C16: 6000000
A17: 20100108292 | B17: CIA MINERA CASAPALCA SA | C17: 2000000
A18: 20100056802 | B18: COMPAñIA MINERA CONDESTABLE S.A.
A19: 20136150473 | B19: CONSORCIO MINERO HORIZONTE S.A. | C19: 4000000
A20: 20466327612 | B20: ARUNTANI S.A.C. | C20: 2000000
A21: 20513798611 | B21: MINERA SUYAMARCA SOCIEDAD ANONIMA CERRADA | C21: 3000000

Sheet Hoja8
A1: ruc | B1: nombre | C1: 201202
A2: 20100147514 | B2: SOUTHERN PERU COPPER CORPORATION SUCURSA L DEL PER | C2: 12000000
A3: 20330262428 | B3: COMPANIA MINERA ANTAMINA S.A
A4: 20170072465 | B4: SOCIEDAD MINERA CERRO VERDE S.A.A. | C4: 6000000
A5: 20209133394 | B5: MINERA BARRICK MISQUICHILCA SA
A6: 20100136741 | B6: MINSUR S. A. | C6: 2400000
A7: 20137291313 | B7: MINERA YANACOCHA S.R.L.
A8: 20114915026 | B8: XSTRATA TINTAYA S.A. | C8: 8400000
A9: 20383045267 | B9: VOLCAN COMPANIA MINERA S.A.A.
A10: 20100142989 | B10: SHOUGANG HIERRO PERU S.A.A. | C10: 7800000
A11: 20100110513 | B11: COMPAñIA MINERA MILPO S.A.A.
A12: 20507828915 | B12: GOLD FIELDS LA CIMA S.A.A. | C12: 2400000
A13: 20100079501 | B13: COMPAñIA DE MINAS BUENAVENTURA S.A.A.
A14: 20100025591 | B14: EMPRESA ADMINISTRADORA CHUNGAR S.A.C. | C14: 3000000
A15: 20100017572 | B15: SOCIEDAD MINERA EL BROCAL S.A.A.
A16: 20217427593 | B16: SOCIEDAD MINERA CORONA S A | C16: 3600000
A17: 20100108292 | B17: CIA MINERA CASAPALCA SA | C17: 1200000
A18: 20100056802 | B18: COMPAñIA MINERA CONDESTABLE S.A.
A19: 20136150473 | B19: CONSORCIO MINERO HORIZONTE S.A. | C19: 2400000
A20: 20466327612 | B20: ARUNTANI S.A.C. | C20: 1200000
A21: 20513798611 | B21: MINERA SUYAMARCA SOCIEDAD ANONIMA CERRADA | C21: 1800000
